bitfinex-derivatives/quotes_SOLF0:USTF0_20250819
["timestamp","ask_amount","ask_price","bid_price","bid_amount"]
[1755625382534,2.95,178.09,177.99,2.93]
[1755625382729,2.95,178.09,178.01,4.80697768]
[1755625382926,2.95,178.09,178.02,2.93]
[1755625383331,4.80697768,178.09,177.98,2.93]
[1755625383527,2.95,178.08,177.98,2.93]
[1755625383735,4.80697768,178.06,177.98,2.93]
[1755625384031,2.95,178.05,177.98,2.93]
[1755625385934,4.80697768,178.04,177.95,2.93]
[1755625386523,2.95,178.03,177.95,2.93]
[1755625387229,2.95,178.06,177.95,2.93]
[1755625387430,2.95,178.06,177.96,4.80697768]
[1755625387730,7.75697768,178.1,177.97,2.93]
[1755625387930,7.75697768,178.1,177.97,5.6185]
[1755625388131,7.75697768,178.1,177.98,2.93]
[1755625388325,2.95,178.09,177.98,2.93]
[1755625389737,3.13,178.06,177.98,2.93]
[1755625390331,3.13,178.06,177.93,2.99]
[1755625390725,3.13,178.06,177.9,144.68806262]
[1755625390726,3.13,178.06,177.96,2.99]
[1755625390930,7.93697768,178.1,177.98,2.99]
[1755625391538,3.13,178.09,177.98,2.99]
[1755625393737,3.13,178.09,177.99,2.99]
[1755625393933,517.58,178.11,178.0,4.80697768]
[1755625394136,140.04,178.11,178.01,2.99]
[1755625394334,140.04,178.11,178.01,5.6171]
[1755625394540,140.04,178.11,178.02,2.99]
[1755625395934,140.04,178.11,178.02,8.6071]
[1755625396139,140.04,178.11,178.01,2.99]
[1755625396951,140.04,178.11,178.01,8.6073]
[1755625397243,3.13,178.1,178.01,2.99]
[1755625397445,3.13,178.1,178.02,5.617]
[1755625397651,5.78424498,178.16,178.05,4.80697768]
[1755625397842,5.78424498,178.16,178.06,2.99]
[1755625397843,4.1072673,178.16,178.06,2.99]
[1755625398147,4.1072673,178.16,178.06,8.6058]
[1755625398552,4.1072673,178.16,178.07,2.99]
[1755625401149,5.78424498,178.16,178.07,2.99]
[1755625401341,3.13,178.15,178.07,2.99]
[1755625405560,3.13,178.15,178.03,2.99]
[1755625406645,3.13,178.15,178.04,5.6163]
[1755625406851,3.13,178.15,178.05,2.99]
[1755625410363,3.13,178.12,178.05,2.99]
[1755625410660,3.13,178.15,178.05,2.99]
[1755625411860,3.13,178.15,178.05,7.79697768]
[1755625412051,3.13,178.15,178.06,2.99]
[1755625412461,0.9772673,178.16,178.07,2.99]
[1755625412757,3.13,178.2,178.09,2.99]
[1755625412959,0.97718498,178.18,178.09,2.99]
[1755625413155,4.10718498,178.18,178.09,2.99]
[1755625414663,0.97718498,178.18,178.09,2.99]
[1755625414863,400.85856768,178.21,178.09,2.99]
[1755625415158,401.83561548,178.21,178.09,8.6046]
[1755625415358,3.13,178.2,178.08,4.80697768]
[1755625415564,3.13,178.2,178.1,5.6143]
[1755625415752,398.70561548,178.21,178.03,139.9]
[1755625415753,16.2986378,178.21,178.12,2.99]
[1755625416155,16.2986378,178.21,178.14,5.6132]
[1755625416363,16.2986378,178.21,178.15,2.99]
[1755625416664,3.13,178.2,178.12,2.99]
[1755625418759,21.10561548,178.21,178.12,2.99]
[1755625419268,16.2986378,178.21,178.12,2.99]
[1755625421563,15.32159,178.21,178.14,4.80697768]
[1755625421759,15.32159,178.21,178.15,2.91]
[1755625426168,15.32159,178.21,178.15,8.523]
[1755625426559,15.32159,178.21,178.15,2.91]
[1755625428071,18.45159,178.21,178.15,2.91]
[1755625428669,15.32159,178.21,178.15,2.91]
[1755625431470,3.13,178.2,178.11,2.91]
[1755625433471,3.13,178.17,178.08,2.91]
[1755625433772,3.13,178.17,178.03,139.9]
[1755625434078,3.13,178.15,178.04,2.91]
[1755625434476,3.13,178.15,178.04,8.5264]
[1755625434779,3.13,178.15,178.07,2.91]
[1755625437575,3.13,178.15,178.03,2.91]
[1755625438074,0.04289682,178.1,178.03,2.91]
[1755625438280,0.04289682,178.1,178.07,0.04132934]
[1755625438579,3.13,178.09,178.07,0.04132934]
[1755625440174,0.04289682,178.1,178.07,0.04132934]
[1755625440376,3.13,178.08,178.07,0.04132934]
[1755625441282,3.17289682,178.1,178.07,0.04132934]
[1755625442272,0.04289682,178.1,178.07,0.04132934]
[1755625442682,3.13,178.08,178.07,0.04132934]
[1755625442881,0.04289682,178.1,178.07,0.04132934]
[1755625443182,0.04289682,178.1,178.08,2.91]
[1755625443481,0.04289682,178.1,178.07,0.04132934]
[1755625444086,3.17289682,178.1,178.07,0.04132934]
[1755625444280,0.04289682,178.1,178.08,2.91]
[1755625444480,0.04289682,178.1,178.07,0.04132934]
[1755625445185,3.13,178.09,178.07,0.04132934]
[1755625445384,0.04289682,178.1,178.07,0.04132934]
[1755625445589,0.04289682,178.1,178.08,2.91]
[1755625446589,0.04289682,178.1,178.07,0.04132934]
[1755625446793,3.13,178.09,178.07,0.04132934]
[1755625446997,3.13,178.08,178.07,0.04132934]
[1755625447682,0.04289682,178.1,178.07,0.04132934]
[1755625447888,3.17289682,178.1,178.07,0.04132934]
[1755625448189,3.13,178.09,178.07,0.04132934]
[1755625449500,0.04289682,178.1,178.07,0.04132934]
[1755625449700,3.14,178.08,178.07,0.04132934]
[1755625450001,3.18289682,178.1,178.07,0.04132934]
[1755625450787,0.04289682,178.1,178.07,3.01132934]
[1755625451096,3.18289682,178.1,178.07,3.01132934]
[1755625453091,0.04289682,178.1,178.07,0.04132934]
[1755625453399,3.14,178.08,178.07,0.04132934]
[1755625454598,3.18289682,178.1,178.07,3.01132934]
[1755625455493,0.04289682,178.1,178.08,2.97]
[1755625455898,0.04289682,178.1,178.07,0.04132934]
[1755625456199,0.04289682,178.1,178.07,3.01132934]
[1755625456496,0.04289682,178.1,178.07,0.04132934]
[1755625456900,3.14,178.09,178.07,0.04132934]
[1755625457599,3.14,178.08,178.07,0.04132934]
[1755625458102,3.18289682,178.1,178.07,0.04132934]
[1755625459002,3.18289682,178.1,178.07,3.01132934]
[1755625459198,0.04289682,178.1,178.07,3.01132934]
[1755625459399,0.04289682,178.1,178.08,2.97]
[1755625461600,0.04289682,178.1,178.09,2.97]
[1755625465503,15.32159,178.21,178.09,8.33697768]
[1755625465703,15.32159,178.21,178.1,2.97]
[1755625465704,3.14,178.2,178.1,2.97]
[1755625466809,3.14,178.18,178.02,139.78]
[1755625467001,3.14,178.18,178.13,0.04137252]
[1755625467206,3.14,178.18,178.07,2.97]
[1755625467504,3.14,178.15,178.14,0.03573673]
[1755625467704,3.14,178.15,178.07,2.97]
[1755625468401,3.14,178.15,178.04,7.77697768]
[1755625468906,3.14,178.15,178.05,2.97]
[1755625470905,3.14,178.15,178.06,2.97]
[1755625478402,3.14,178.14,178.06,2.97]
[1755625479611,6.21776467,178.16,178.07,4.80697768]
[1755625479812,9.20776467,178.19,178.08,3.23304068]
[1755625480112,0.03668471,178.12,178.08,3.23304068]
[1755625480312,6.21776467,178.2,178.11,3.19]
[1755625480516,15.32159,178.21,178.14,3.19]
[1755625481316,15.32159,178.21,178.15,3.19]
[1755625481814,15.32159,178.21,178.18,3.19]
[1755625482015,15.32159,178.21,178.16,0.04174476]
[1755625482510,2.99,178.18,178.16,0.04174476]
[1755625483916,15.32159,178.21,178.16,0.04174476]
[1755625483917,2.99,178.17,178.16,0.04174476]
[1755625488821,7.79697768,178.2,178.16,0.04174476]
[1755625489120,2.99,178.17,178.16,0.04174476]
[1755625490321,2.99,178.17,178.05,5.616]
[1755625490322,2.99,178.16,178.05,3.19]
[1755625491722,2.99,178.13,178.05,3.19]
[1755625492820,2.99,178.13,178.01,3.19]
[1755625494013,2.99,178.1,178.01,3.19]
[1755625494213,2.99,178.1,178.0,3.19]
[1755625494821,7.79697768,178.1,178.0,3.19]
[1755625495016,2.99,178.09,178.0,3.19]
[1755625495413,7.79697768,178.09,178.0,3.19]
[1755625500118,2.99,178.08,178.0,3.19]
[1755625501826,2.99,178.05,177.99,215.20508971]
[1755625502126,2.99,178.05,177.99,218.39508971]
[1755625503420,2.99,178.05,177.96,3.19]
[1755625503826,6.21776467,178.11,177.97,4.80697768]
[1755625504027,2.99,178.1,177.98,3.19]
[1755625504226,2.99,178.1,178.01,3.19]
[1755625504528,2.99,178.1,178.03,3.19]
[1755625505118,2.99,178.07,177.96,3.19]
[1755625505931,2.99,178.04,177.96,3.19]
[1755625507727,4.80697768,178.08,177.96,5.619]
[1755625507927,2.99,178.07,177.97,3.19]
[1755625508128,4.80697768,178.05,177.97,3.19]
[1755625508330,2.99,178.04,177.97,3.19]
[1755625509133,3.0,178.08,177.97,3.19]
[1755625509433,3.0,178.11,178.02,2.88]
[1755625509627,4.80697768,178.16,178.04,4.80697768]
[1755625509829,3.0,178.15,178.05,2.88]
[1755625511233,3.0,178.15,178.02,4.80697768]
[1755625512231,3.0,178.15,178.01,147.42697768]
[1755625512828,3.0,178.12,178.01,147.42697768]
[1755625513035,3.0,178.12,178.01,142.62]
[1755625514736,3.0,178.09,177.96,7.68697768]
[1755625515539,3.0,178.09,177.97,2.88]
[1755625516238,3.0,178.09,177.99,5.618]
[1755625516435,3.0,178.09,178.0,2.88]
[1755625521046,3.0,178.09,177.96,4.80697768]
[1755625521252,3.0,178.06,177.96,7.68697768]
[1755625522345,3.0,178.06,177.96,2.88]
[1755625525154,3.0,178.03,177.96,2.88]
[1755625526051,3.0,178.0,177.88,2.88]
[1755625526251,3.0,178.0,177.9,4.80697768]
[1755625526555,3.0,178.0,177.91,2.88]
[1755625529551,4.80697768,178.03,177.91,2.88]
[1755625529752,3.0,178.02,177.91,2.88]
[1755625530048,3.0,178.02,177.9,4.80697768]
[1755625530049,3.0,178.02,177.92,2.88]
[1755625530253,7.80697768,178.05,177.94,2.88]
[1755625530452,7.80697768,178.05,177.94,5.6196]
[1755625530655,7.80697768,178.05,177.95,2.88]
[1755625532962,3.0,178.04,177.95,2.88]
[1755625538358,3.0,178.04,177.9,10.42777768]
[1755625538359,4.80697768,178.02,177.92,2.88]
[1755625538659,3.0,178.01,177.92,2.88]
[1755625538968,3.0,178.01,177.85,139.72]
[1755625538969,3.0,178.01,177.88,2.97]
[1755625539361,3.0,178.01,177.91,2.97]
[1755625539765,3.0,178.01,177.91,8.5905]
[1755625540068,2.94,178.04,177.94,2.97]
[1755625542362,2.94,178.02,177.94,2.97]
[1755625546068,2.94,178.02,177.9,7.77697768]
[1755625546266,2.94,177.99,177.9,2.97]
[1755625547065,2.94,177.96,177.85,2.97]
[1755625547270,4.80697768,177.94,177.85,2.97]
[1755625548175,2.94,177.96,177.86,2.97]
[1755625549768,2.94,177.96,177.87,2.97]
[1755625550169,4.80697768,177.98,177.87,2.97]
[1755625550170,2.94,178.0,177.87,8.5916]
[1755625550365,2.94,178.0,177.88,2.97]
[1755625552270,2.94,177.97,177.88,2.97]
[1755625554670,2.94,177.97,177.85,2.97]
[1755625554875,2.94,177.94,177.85,2.97]
[1755625560481,7.74697768,177.98,177.86,2.97]
[1755625560680,2.94,177.98,177.89,2.97]
[1755625563181,2.94,177.93,177.85,2.97]
[1755625566074,2.94,177.93,177.87,0.0388188]
[1755625566578,4.80697768,177.94,177.87,0.0388188]
[1755625566579,0.03846277,177.91,177.88,2.97]
[1755625567181,0.03846277,177.91,177.87,0.0388188]
[1755625567376,0.03846277,177.91,177.89,2.97]
[1755625567576,0.03846277,177.91,177.9,2.97]
[1755625568382,0.03846277,177.91,177.88,2.97]
[1755625569377,0.03846277,177.91,177.87,0.0388188]
[1755625569583,0.03846277,177.91,177.9,3.12]
[1755625570185,0.03846277,177.91,177.87,0.0388188]
[1755625570383,3.12846277,177.91,177.87,3.1588188]
[1755625571689,0.03846277,177.91,177.87,0.0388188]
[1755625571887,0.03846277,177.91,177.89,3.12]
[1755625572483,0.03846277,177.91,177.87,0.0388188]
[1755625572682,0.03846277,177.91,177.88,3.12]
[1755625572994,0.03846277,177.91,177.89,3.12]
[1755625573376,0.03846277,177.91,177.87,0.0388188]
[1755625573582,0.03846277,177.91,177.87,3.1588188]
[1755625573980,0.03846277,177.91,177.88,3.12]
[1755625574481,3.09,177.9,177.87,0.0388188]
[1755625574683,0.03846277,177.91,177.87,0.0388188]
[1755625574884,3.09,177.89,177.87,0.0388188]
[1755625575391,3.09,177.9,177.87,0.0388188]
[1755625575584,3.09,177.89,177.87,0.0388188]
[1755625577289,3.09,177.9,177.87,0.0388188]
[1755625577485,4.80697768,177.9,177.87,0.0388188]
[1755625577678,3.09,177.88,177.87,0.0388188]
[1755625579180,3.09,177.88,177.79,3.12]
[1755625579379,3.09,177.85,177.75,3.12]
[1755625580691,0.03933582,177.82,177.75,3.12]
[1755625583687,0.03933582,177.82,177.75,5.6255]
[1755625583882,0.03933582,177.82,177.76,3.12]
[1755625584891,0.03933582,177.82,177.76,5.6253]
[1755625585196,0.03933582,177.82,177.74,3.12]
[1755625585395,0.03933582,177.82,177.77,3.12]
[1755625585600,0.03933582,177.82,177.73,7.51976974]
[1755625585802,0.03933582,177.82,177.74,3.12]
[1755625586098,0.03933582,177.82,177.75,3.12]
[1755625586298,3.09,177.87,177.75,3.12]
[1755625586493,0.03730814,177.8,177.75,3.12]
[1755625586696,0.03730814,177.8,177.72,3.12]
[1755625587093,0.03730814,177.8,177.72,8.7464]
[1755625587396,0.03730814,177.8,177.73,3.12]
[1755625587598,0.03730814,177.8,177.73,8.7461]
[1755625588201,0.03730814,177.8,177.73,3.12]
[1755625589698,3.12730814,177.8,177.71,139.8]
[1755625590597,3.12730814,177.8,177.72,3.12]
[1755625592498,3.12730814,177.8,177.71,139.8]
[1755625592801,3.09,177.79,177.68,3.12]
[1755625593101,3.09,177.79,177.65,140.02]
[1755625593303,3.09,177.79,177.66,3.12]
[1755625593600,0.03725465,177.74,177.66,8.7482]
[1755625594008,0.03725465,177.74,177.67,3.12]
[1755625594597,0.03725465,177.74,177.65,147.53976974]
[1755625594598,0.03725465,177.74,177.7,3.12]
[1755625594789,0.03725465,177.74,177.72,3.12]
[1755625594993,0.03725465,177.74,177.7,3.12]
[1755625595395,0.03725465,177.74,177.69,7.51976974]
[1755625595595,0.03725465,177.74,177.73,3.12]
[1755625595791,0.03725465,177.74,177.71,3.12]
[1755625596201,0.03725465,177.74,177.72,3.12]
[1755625596699,0.03725465,177.74,177.66,3.12]
[1755625597597,0.03725465,177.74,177.66,8.7484]
[1755625597799,0.03725465,177.74,177.66,3.12]
[1755625599300,2.99,177.73,177.66,3.12]
[1755625601405,0.03725465,177.74,177.64,216.6681628]
[1755625601600,0.03725465,177.74,177.65,2.96]
[1755625601801,2.99,177.75,177.66,5.6284]
[1755625602099,2.99,177.75,177.65,2.96]
[1755625602100,0.03696153,177.71,177.65,2.96]
[1755625602306,0.03696153,177.71,177.68,2.96]
[1755625603103,0.03696153,177.71,177.64,349.28839306]
[1755625603104,0.03696153,177.71,177.64,357.08467893]
[1755625604200,0.03696153,177.71,177.65,8.5887]
[1755625604602,0.03696153,177.71,177.65,2.96]
[1755625606298,0.03696153,177.71,177.64,354.12467893]
[1755625606497,0.03696153,177.71,177.64,349.28839306]
[1755625606498,2.99,177.7,177.64,349.28839306]
[1755625606804,0.03696153,177.71,177.65,2.96]
[1755625607006,0.03696153,177.71,177.64,349.28839306]
[1755625607907,2.99,177.7,177.64,140.14]
[1755625608902,7.82628587,177.7,177.6,518.6]
[1755625609300,2.99,177.69,177.6,140.56]
[1755625609605,0.03605303,177.67,177.6,140.56]
[1755625609810,3.02605303,177.67,177.6,140.56]
[1755625610709,3.02605303,177.67,177.57,4.83628587]
[1755625613304,3.02605303,177.67,177.56,2.96]
[1755625613700,2.99,177.67,177.56,2.96]
[1755625614105,0.03554632,177.63,177.56,2.96]
[1755625614907,0.03554632,177.63,177.56,5.6316]
[1755625615110,0.03554632,177.63,177.57,2.96]
[1755625617207,0.03554632,177.63,177.58,4.83628587]
[1755625617413,0.03554632,177.63,177.61,7.79628587]
[1755625617609,0.03554632,177.63,177.62,2.96]
[1755625617804,0.03554632,177.63,177.58,7.79628587]
[1755625618016,0.03554632,177.63,177.57,5.6312]
[1755625618017,0.03554632,177.63,177.6,2.96]
[1755625618204,0.03554632,177.63,177.57,7.79628587]
[1755625620109,0.03554632,177.63,177.58,2.96]
[1755625620309,2.99,177.73,177.61,2.96]
[1755625620512,2.99,177.73,177.58,0.03730321]
[1755625620513,2.99,177.73,177.65,2.96]
[1755625621016,2.99,177.73,177.62,140.42]
[1755625621017,2.99,177.73,177.62,145.35628587]
[1755625621711,2.99,177.73,177.63,2.96]
[1755625622611,2.99,177.73,177.62,145.35628587]
[1755625622818,2.99,177.73,177.64,2.96]
[1755625623719,2.99,177.73,177.65,10.46498587]
[1755625624220,2.99,177.8,177.71,4.83628587]
[1755625626314,2.99,177.8,177.7,143.54]
[1755625626818,2.99,177.8,177.71,2.96]
[1755625627211,2.99,177.8,177.71,8.5866]
[1755625628118,2.99,177.8,177.73,2.96]
[1755625629014,7.52031343,177.89,177.72,5.6264]
[1755625629015,2.97,177.85,177.75,5.6254]
[1755625629219,2.97,177.85,177.76,2.97]
[1755625629820,2.97,177.89,177.77,144.35]
[1755625630016,2.97,177.89,177.78,2.97]
[1755625630226,2.97,177.89,177.79,5.6241]
[1755625630522,2.97,177.89,177.8,2.97]
[1755625631616,2.97,177.89,177.77,141.38]
[1755625634521,2.97,177.89,177.76,2.97]
[1755625637818,2.97,177.89,177.76,8.5951]
[1755625638022,2.97,177.89,177.77,2.97]
[1755625640124,2.97,177.88,177.75,210.75152265]
[1755625641024,7.52031343,177.85,177.74,2.97]
[1755625641228,2.97,177.84,177.74,2.97]
[1755625643924,2.97,177.84,177.7,2.97]
[1755625646029,2.97,177.84,177.69,140.98]
[1755625646030,2.97,177.84,177.74,2.97]
[1755625648820,379.31882035,177.91,177.74,8.5958]
[1755625649027,2.97,177.9,177.74,2.97]
[1755625649427,2.97,177.9,177.76,2.97]
[1755625651532,2.97,177.9,177.77,2.97]
[1755625654432,2.97,177.89,177.77,7.80111038]
[1755625655430,2.97,177.86,177.77,2.97]
[1755625656033,4.83111038,177.84,177.74,2.97]
[1755625656332,2.97,177.83,177.74,2.97]
[1755625656735,2.97,177.83,177.74,7.80111038]
[1755625656934,4.83111038,177.86,177.75,2.97]
[1755625656935,2.97,177.86,177.75,2.97]
[1755625658132,2.97,177.86,177.77,4.83111038]
[1755625658329,2.97,177.86,177.78,2.97]
[1755625658529,0.03716007,177.83,177.8,0.03847881]
[1755625658841,0.03716007,177.83,177.81,2.97]
[1755625659431,0.03716007,177.83,177.81,3.04]
[1755625659636,0.03716007,177.83,177.82,3.04]
[1755625660330,0.03716007,177.83,177.8,0.03847881]
[1755625660834,2.93,177.81,177.8,0.03847881]
[1755625662537,0.03716007,177.83,177.8,0.03847881]
[1755625662739,2.93,177.81,177.8,0.03847881]
[1755625663645,0.03716007,177.83,177.8,0.03847881]
[1755625663846,2.93,177.82,177.8,0.03847881]
[1755625664045,0.03716007,177.83,177.8,0.03847881]
[1755625664247,2.93,177.81,177.8,0.03847881]
[1755625664647,2.93,177.81,177.72,204.69197448]
[1755625665944,0.03926741,177.78,177.72,204.69197448]
[1755625666147,0.03926741,177.78,177.74,3.04]
[1755625667542,0.03926741,177.78,177.73,3.04]
[1755625667743,0.03926741,177.78,177.72,204.69197448]
[1755625667945,0.03926741,177.78,177.73,3.04]
[1755625668353,0.03926741,177.78,177.72,204.69197448]
[1755625668551,0.03926741,177.78,177.76,3.04]
[1755625669752,0.03926741,177.78,177.72,204.69197448]
[1755625669954,0.03926741,177.78,177.76,3.04]
[1755625670146,0.03926741,177.78,177.73,3.04]
[1755625670548,0.03926741,177.78,177.73,8.666]
[1755625670854,0.03926741,177.78,177.74,3.04]
[1755625671050,0.03926741,177.78,177.76,3.04]
[1755625671250,0.03926741,177.78,177.77,3.04]
[1755625675446,0.03926741,177.78,177.74,140.52]
[1755625675447,0.03926741,177.78,177.74,143.56]
[1755625675647,0.03926741,177.78,177.75,3.04]
[1755625676561,2.93,177.77,177.72,204.69197448]
[1755625676752,0.03926741,177.78,177.72,204.69197448]
[1755625677057,0.03926741,177.78,177.72,207.73197448]
[1755625679050,0.03926741,177.78,177.73,3.04]
[1755625679462,0.03926741,177.78,177.74,3.04]
[1755625679758,0.03926741,177.78,177.72,207.73197448]
[1755625680064,0.03926741,177.78,177.73,143.64]
[1755625680254,2.93,177.77,177.73,3.04]
[1755625680559,0.03926741,177.78,177.73,3.04]
[1755625680762,0.03926741,177.78,177.74,3.04]
[1755625681155,0.03926741,177.78,177.74,4.83446235]
[1755625681462,0.03926741,177.78,177.77,3.04]
[1755625682264,0.03926741,177.78,177.77,148.49446235]
[1755625683458,2.93,177.88,177.77,148.49446235]
[1755625683956,2.93,177.88,177.77,154.11946235]
[1755625684152,2.93,177.88,177.8,7.87446235]
[1755625684360,2.93,177.88,177.81,140.56]
[1755625687271,2.93,177.91,177.84,3.04]
[1755625687563,4.83446235,177.99,177.86,4.83446235]
[1755625687763,0.9785176,177.95,177.89,4.83446235]
[1755625687965,2.93,177.97,177.89,7.87446235]
[1755625688362,2.93,177.97,177.89,4.83446235]
[1755625691766,2.93,177.97,177.88,3.02]
[1755625692467,2.93,177.97,177.87,4.83446235]
[1755625693070,2.93,177.97,177.84,3.02]
[1755625694663,4.83446235,177.95,177.84,3.02]
[1755625694863,2.97,177.94,177.84,3.02]
[1755625698775,2.97,177.94,177.87,3.02]
[1755625699275,19.32061379,177.98,177.87,3.02]
[1755625699773,19.32061379,177.98,177.89,4.83446235]
[1755625700070,18.34233,177.98,177.9,3.02]
[1755625704572,2.97,177.97,177.9,3.02]
[1755625704778,2.97,177.97,177.84,3.02]
[1755625704971,2.97,177.97,177.86,3.02]
[1755625707482,144.45,177.97,177.82,380.88]
[1755625707676,2.97,177.96,177.82,380.88]
[1755625708170,2.97,177.93,177.82,3.02]
[1755625710579,2.97,177.93,177.83,3.02]
[1755625711479,141.48,177.97,177.84,3.02]
[1755625711684,144.45,177.97,177.84,3.02]
[1755625711984,144.45,177.97,177.84,8.6426]
[1755625712282,144.45,177.97,177.85,3.02]
[1755625712784,0.03978865,177.93,177.9,3.02]
[1755625715174,0.03978865,177.93,177.89,0.04001318]
[1755625715684,2.97,177.9,177.89,0.04001318]
[1755625717080,3.00978865,177.93,177.89,0.04001318]
[1755625717280,0.03978865,177.93,177.89,0.04001318]
[1755625717687,0.03978865,177.93,177.91,3.02]
[1755625718286,0.03978865,177.93,177.9,3.02]
[1755625718483,0.03978865,177.93,177.92,3.02]
[1755625720190,0.03978865,177.93,177.9,3.11]
[1755625720483,0.03978865,177.93,177.89,0.04001318]
[1755625720484,3.09,177.92,177.89,0.04001318]
[1755625721185,0.03978865,177.93,177.89,0.04001318]
[1755625721381,0.03978865,177.93,177.89,3.15001318]
[1755625721586,0.03978865,177.93,177.9,3.11]
[1755625722088,0.03978865,177.93,177.91,3.11]
[1755625722688,0.03978865,177.93,177.9,3.11]
[1755625723188,0.03978865,177.93,177.92,3.11]
[1755625724092,15.37233,177.98,177.92,3.67]
[1755625724286,15.37233,177.98,177.92,3.11]
[1755625724485,15.37233,177.98,177.92,8.73]
[1755625724690,15.37233,177.98,177.92,3.11]
[1755625725090,15.37233,177.98,177.93,5.6199]
[1755625725290,15.37233,177.98,177.96,3.11]
[1755625725993,15.37233,177.98,177.95,3.11]
[1755625726189,15.37233,177.98,177.97,3.11]
[1755625726390,15.37233,177.98,177.93,3.15221663]
[1755625726590,18.46233,177.98,177.93,3.15221663]
[1755625726984,3.09,177.97,177.93,0.04221663]
[1755625727390,3.09,177.96,177.93,0.04221663]
[1755625727593,3.09,177.95,177.93,0.04221663]
[1755625727795,15.37233,177.98,177.93,0.04221663]
[1755625727991,3.09,177.97,177.93,0.04221663]
[1755625728392,3.09,177.96,177.93,0.04221663]
[1755625729493,3.09,177.95,177.93,0.04221663]
[1755625730095,15.37233,177.98,177.93,0.04221663]
[1755625730396,3.09,177.96,177.93,0.04221663]
[1755625730596,3.09,177.94,177.93,0.04221663]
[1755625731494,3.09,177.94,177.85,377.82]
[1755625733597,3.09,177.94,177.83,144.55]
[1755625736188,15.37233,177.98,177.86,3.11]
[1755625736490,15.37233,177.98,177.89,7.50423318]
[1755625736697,15.37233,177.98,177.9,3.11]
[1755625737096,15.37233,177.98,177.91,5.6207]
[1755625737402,15.37233,177.98,177.9,3.11]
[1755625737799,15.37233,177.98,177.9,8.7312]
[1755625739694,15.37233,177.98,177.92,3.11]
[1755625742300,15.37233,177.98,177.89,7.50423318]
[1755625742301,15.37233,177.98,177.93,7.50423318]
[1755625742601,15.37233,177.98,177.96,3.11]
[1755625742800,15.37233,177.98,177.97,3.11]
[1755625743606,15.37233,177.98,177.95,3.11]
[1755625744000,15.37233,177.98,177.96,3.11]
[1755625744702,18.46233,177.98,177.94,3.11]
[1755625745905,15.37233,177.98,177.93,7.50423318]
[1755625746103,15.37233,177.98,177.96,3.11]
[1755625746306,15.37233,177.98,177.93,7.50423318]
[1755625746496,18.46233,177.98,177.93,10.61423318]
[1755625746700,3.09,177.97,177.9,3.11]
[1755625747309,3.09,177.97,177.9,8.731]
[1755625747805,3.09,177.97,177.91,5.6208]
[1755625748001,15.37233,177.98,177.9,3.11]
[1755625748199,15.37233,177.98,177.94,3.11]
[1755625748504,15.37233,177.98,177.93,7.50423318]
[1755625748505,15.37233,177.98,177.96,3.11]
[1755625749102,15.37233,177.98,177.94,3.15]
[1755625749308,15.37233,177.98,177.93,7.50423318]
[1755625749496,15.37233,177.98,177.94,3.15]
[1755625749712,3.09,178.03,177.94,3.15]
[1755625749909,2.92,178.1,177.98,3.15]
[1755625750407,3.89765167,178.1,177.98,3.15]